[Event "*** SCC Grand Prix: Titled Tuesday Blitz"]
[Site "Chess.com"]
[Date "2020.08.25"]
[Round "8"]
[White "ChessyInstinct"]
[Black "dosto07"]
[Result "1-0"]
[WhiteElo "2484"]
[BlackElo "2318"]
[TimeControl "180+1"]
[EndTime "11:37:27 PDT"]
[Termination "ChessyInstinct won on time"]

1. d4 {[%clk 0:03:00.9]} 1... d5 {[%clk 0:02:59.2]} 2. c4 {[%clk 0:02:52.3]}
2... dxc4 {[%clk 0:03:00.1]} 3. Nf3 {[%clk 0:02:52.1]} 3... Nf6 {[%clk
0:03:00.1]} 4. e3 {[%clk 0:02:52.8]} 4... e6 {[%clk 0:03:00.4]} 5. Bxc4 {[%clk
0:02:53.3]} 5... c5 {[%clk 0:03:00.8]} 6. O-O {[%clk 0:02:53.6]} 6... a6 {[%clk
0:03:00.1]} 7. a4 {[%clk 0:02:52.8]} 7... Nc6 {[%clk 0:02:59.8]} 8. Nc3 {[%clk
0:02:52.9]} 8... Be7 {[%clk 0:02:59.6]} 9. h3 {[%clk 0:02:46]} 9... O-O {[%clk
0:02:57.7]} 10. Re1 {[%clk 0:02:44]} 10... b6 {[%clk 0:02:42.2]} 11. b3 {[%clk
0:02:10.1]} 11... Bb7 {[%clk 0:02:41]} 12. Bb2 {[%clk 0:02:06.4]} 12... Qc7
{[%clk 0:02:34.8]} 13. d5 {[%clk 0:01:58.5]} 13... exd5 {[%clk 0:02:33.9]} 14.
Nxd5 {[%clk 0:01:59.4]} 14... Nxd5 {[%clk 0:02:33.4]} 15. Qxd5 {[%clk
0:01:59.2]} 15... Na5 {[%clk 0:02:22.7]} 16. Qh5 {[%clk 0:01:55.4]} 16... Nxc4
{[%clk 0:02:17.9]} 17. bxc4 {[%clk 0:01:56.3]} 17... Qc6 {[%clk 0:02:08.7]} 18.
Red1 {[%clk 0:01:39.2]} 18... Rfd8 {[%clk 0:02:06.3]} 19. Qg4 {[%clk 0:01:37.4]}
19... f6 {[%clk 0:01:58.5]} 20. Nh4 {[%clk 0:01:29.4]} 20... Qe4 {[%clk
0:01:40.9]} 21. Nf5 {[%clk 0:01:18.4]} 21... Qxg4 {[%clk 0:01:39.5]} 22. Nxe7+
{[%clk 0:00:57.9]} 22... Kf7 {[%clk 0:01:39.2]} 23. hxg4 {[%clk 0:00:57.5]}
23... Kxe7 {[%clk 0:01:39.1]} 24. f3 {[%clk 0:00:49.4]} 24... a5 {[%clk
0:01:37]} 25. Rdb1 {[%clk 0:00:38]} 25... Ba6 {[%clk 0:01:30.4]} 26. Bc3 {[%clk
0:00:29.8]} 26... Rab8 {[%clk 0:01:18.6]} 27. g5 {[%clk 0:00:22.5]} 27... Bxc4
{[%clk 0:01:16.4]} 28. gxf6+ {[%clk 0:00:22.3]} 28... gxf6 {[%clk 0:01:16.5]}
29. Rb2 {[%clk 0:00:20.5]} 29... Rd3 {[%clk 0:01:07.5]} 30. Bxa5 {[%clk
0:00:19.9]} 30... Rxe3 {[%clk 0:00:50.4]} 31. Bxb6 {[%clk 0:00:18.2]} 31... Kd7
{[%clk 0:00:44.5]} 32. Bxc5 {[%clk 0:00:09.2]} 32... Rxb2 {[%clk 0:00:42.9]} 33.
Bxe3 {[%clk 0:00:09.9]} 33... Re2 {[%clk 0:00:30.8]} 34. Bd4 {[%clk 0:00:09.2]}
34... f5 {[%clk 0:00:28.7]} 35. a5 {[%clk 0:00:08.4]} 35... Ba6 {[%clk
0:00:28.6]} 36. Rd1 {[%clk 0:00:07.8]} 36... Kc6 {[%clk 0:00:26.2]} 37. Bb6
{[%clk 0:00:07.2]} 37... h5 {[%clk 0:00:18]} 38. Rd4 {[%clk 0:00:07.7]} 38...
Re5 {[%clk 0:00:15.6]} 39. Rh4 {[%clk 0:00:06.8]} 39... Be2 {[%clk 0:00:11.2]}
40. Rxh5 {[%clk 0:00:04.5]} 40... Rd5 {[%clk 0:00:10.9]} 41. Rh6+ {[%clk
0:00:04.7]} 41... Kb5 {[%clk 0:00:10.3]} 42. Kf2 {[%clk 0:00:05.1]} 42... Bc4
{[%clk 0:00:09]} 43. Rf6 {[%clk 0:00:05]} 43... Rd2+ {[%clk 0:00:08.9]} 44. Kg3
{[%clk 0:00:05.3]} 44... Bd3 {[%clk 0:00:09.3]} 45. Rg6 {[%clk 0:00:03.9]} 45...
Bf1 {[%clk 0:00:08.7]} 46. Kh2 {[%clk 0:00:03.1]} 46... f4 {[%clk 0:00:07.8]}
47. Rg5+ {[%clk 0:00:03.1]} 47... Ka6 {[%clk 0:00:07]} 48. Rg4 {[%clk
0:00:03.4]} 48... Rb2 {[%clk 0:00:05.4]} 49. Bc7 {[%clk 0:00:03.6]} 49... Kb7
{[%clk 0:00:04.6]} 50. Bxf4 {[%clk 0:00:03.7]} 50... Ka6 {[%clk 0:00:05.5]} 51.
Bc7 {[%clk 0:00:03.6]} 51... Kb7 {[%clk 0:00:05.3]} 52. Bb6 {[%clk 0:00:04.2]}
52... Kc6 {[%clk 0:00:05.9]} 53. f4 {[%clk 0:00:04.6]} 53... Be2 {[%clk
0:00:04.3]} 54. Rg3 {[%clk 0:00:04.6]} 54... Bf1 {[%clk 0:00:04]} 55. f5 {[%clk
0:00:04.4]} 55... Bc4 {[%clk 0:00:02.6]} 56. f6 {[%clk 0:00:04.3]} 56... Bf7
{[%clk 0:00:02.5]} 57. Rg7 {[%clk 0:00:04]} 57... Bd5 {[%clk 0:00:03]} 58. f7
{[%clk 0:00:04.3]} 58... Rf2 {[%clk 0:00:01.4]} 59. Bxf2 {[%clk 0:00:03.6]} 1-0

[Event "*** SCC Grand Prix: Titled Tuesday Blitz"]
[Site "Chess.com"]
[Date "2020.08.25"]
[Round "8"]
[White "CHESSMASTER759"]
[Black "GukeshDommaraju"]
[Result "0-1"]
[WhiteElo "2546"]
[BlackElo "2718"]
[TimeControl "180+1"]
[EndTime "11:37:28 PDT"]
[Termination "GukeshDommaraju won on time"]

1. e4 {[%clk 0:03:00.9]} 1... c5 {[%clk 0:02:59.1]} 2. c3 {[%clk 0:03:00.8]}
2... Nf6 {[%clk 0:02:57.8]} 3. e5 {[%clk 0:03:00.7]} 3... Nd5 {[%clk 0:02:57.9]}
4. Nf3 {[%clk 0:03:01.6]} 4... e6 {[%clk 0:02:57.1]} 5. d4 {[%clk 0:03:01.2]}
5... cxd4 {[%clk 0:02:56.6]} 6. cxd4 {[%clk 0:03:01.4]} 6... d6 {[%clk
0:02:56.9]} 7. a3 {[%clk 0:03:00]} 7... Bd7 {[%clk 0:02:52.9]} 8. Bd3 {[%clk
0:02:59.9]} 8... Bc6 {[%clk 0:02:52.3]} 9. O-O {[%clk 0:02:59.2]} 9... Nd7
{[%clk 0:02:52.5]} 10. b4 {[%clk 0:02:58.9]} 10... a6 {[%clk 0:02:48.5]} 11.
Nbd2 {[%clk 0:02:52.4]} 11... Be7 {[%clk 0:02:43.3]} 12. Ne4 {[%clk 0:02:30]}
12... dxe5 {[%clk 0:02:41.2]} 13. dxe5 {[%clk 0:02:28.6]} 13... O-O {[%clk
0:02:39.3]} 14. Qe2 {[%clk 0:02:28.7]} 14... Qc7 {[%clk 0:02:35.3]} 15. Ng3
{[%clk 0:02:21.2]} 15... Nc3 {[%clk 0:02:23.4]} 16. Bxh7+ {[%clk 0:02:12.9]}
16... Kh8 {[%clk 0:02:22.6]} 17. Qc4 {[%clk 0:02:12.7]} 17... Nxe5 {[%clk
0:01:47.7]} 18. Nxe5 {[%clk 0:02:04.3]} 18... Qxe5 {[%clk 0:01:47.3]} 19. Bb2
{[%clk 0:01:50.2]} 19... Bb5 {[%clk 0:01:36.9]} 20. Qb3 {[%clk 0:01:50]} 20...
Bxf1 {[%clk 0:01:32.7]} 21. Bxc3 {[%clk 0:01:48.7]} 21... Qd5 {[%clk 0:01:11.5]}
22. Qxd5 {[%clk 0:01:40.2]} 22... exd5 {[%clk 0:01:12.4]} 23. Kxf1 {[%clk
0:01:23.6]} 23... Kxh7 {[%clk 0:01:11.6]} 24. Nf5 {[%clk 0:01:24.5]} 24... Bf6
{[%clk 0:01:01.1]} 25. Bxf6 {[%clk 0:01:24.2]} 25... gxf6 {[%clk 0:01:02]} 26.
Rd1 {[%clk 0:01:24.3]} 26... Rad8 {[%clk 0:00:52.6]} 27. g4 {[%clk 0:01:21.8]}
27... Rfe8 {[%clk 0:00:51]} 28. Rd3 {[%clk 0:01:19.6]} 28... Re4 {[%clk
0:00:49.4]} 29. Rh3+ {[%clk 0:01:08.8]} 29... Kg8 {[%clk 0:00:49.3]} 30. Rc3
{[%clk 0:01:09.7]} 30... Rd7 {[%clk 0:00:42.1]} 31. h3 {[%clk 0:01:05.5]} 31...
Kh7 {[%clk 0:00:39.5]} 32. Kg2 {[%clk 0:01:02.8]} 32... Rc4 {[%clk 0:00:37.4]}
33. Rd3 {[%clk 0:01:00.6]} 33... d4 {[%clk 0:00:37.4]} 34. Kf3 {[%clk 0:00:58]}
34... Rc3 {[%clk 0:00:35.5]} 35. Ke4 {[%clk 0:00:58.3]} 35... Kg6 {[%clk
0:00:33.6]} 36. h4 {[%clk 0:00:56]} 36... Rd8 {[%clk 0:00:24.8]} 37. Ne7+ {[%clk
0:00:52.8]} 37... Kh7 {[%clk 0:00:23.5]} 38. Nf5 {[%clk 0:00:51.3]} 38... b5
{[%clk 0:00:19.6]} 39. f3 {[%clk 0:00:49.2]} 39... Re8+ {[%clk 0:00:18.5]} 40.
Kxd4 {[%clk 0:00:45.8]} 40... Rc4+ {[%clk 0:00:18.9]} 41. Kd5 {[%clk 0:00:41.9]}
41... Rd8+ {[%clk 0:00:19.2]} 42. Nd6 {[%clk 0:00:42.5]} 42... Rcc8 {[%clk
0:00:19.2]} 43. Rd4 {[%clk 0:00:29.9]} 43... Rc7 {[%clk 0:00:18.5]} 44. f4
{[%clk 0:00:22.4]} 44... Kg7 {[%clk 0:00:17.9]} 45. Ke4 {[%clk 0:00:20.4]} 45...
Re7+ {[%clk 0:00:15.4]} 46. Kf5 {[%clk 0:00:18.5]} 46... Red7 {[%clk 0:00:15]}
47. Ne8+ {[%clk 0:00:18.4]} 47... Kf8 {[%clk 0:00:14.5]} 48. Rxd7 {[%clk
0:00:16.9]} 48... Rxd7 {[%clk 0:00:15.4]} 49. Nxf6 {[%clk 0:00:17.5]} 49... Rd3
{[%clk 0:00:15.5]} 50. h5 {[%clk 0:00:10.5]} 50... Rxa3 {[%clk 0:00:15.5]} 51.
g5 {[%clk 0:00:08.8]} 51... a5 {[%clk 0:00:15.4]} 52. bxa5 {[%clk 0:00:05.9]}
52... Rxa5 {[%clk 0:00:16.3]} 53. h6 {[%clk 0:00:03.7]} 53... b4+ {[%clk
0:00:16.6]} 54. Ke4 {[%clk 0:00:03.9]} 54... b3 {[%clk 0:00:16.8]} 55. Kd3
{[%clk 0:00:04.2]} 55... Rb5 {[%clk 0:00:17.1]} 56. f5 {[%clk 0:00:01.5]} 56...
b2 {[%clk 0:00:16.6]} 0-1

[Event "*** SCC Grand Prix: Titled Tuesday Blitz"]
[Site "Chess.com"]
[Date "2020.08.25"]
[Round "8"]
[White "Fandorine"]
[Black "reutik"]
[Result "1-0"]
[WhiteElo "2905"]
[BlackElo "2315"]
[TimeControl "180+1"]
[EndTime "11:37:33 PDT"]
[Termination "Fandorine won by resignation"]

1. d4 {[%clk 0:03:00.9]} 1... Nf6 {[%clk 0:02:59.1]} 2. c4 {[%clk 0:03:01]} 2...
e6 {[%clk 0:02:59.6]} 3. Nf3 {[%clk 0:03:01.1]} 3... b6 {[%clk 0:02:59.9]} 4. g3
{[%clk 0:03:01.3]} 4... Ba6 {[%clk 0:03:00]} 5. Qc2 {[%clk 0:02:57.7]} 5... c5
{[%clk 0:02:56.6]} 6. d5 {[%clk 0:02:56.8]} 6... exd5 {[%clk 0:02:45.6]} 7. cxd5
{[%clk 0:02:57.7]} 7... Bb7 {[%clk 0:02:42.4]} 8. Bg2 {[%clk 0:02:52.6]} 8...
Bxd5 {[%clk 0:02:34.4]} 9. O-O {[%clk 0:02:48.1]} 9... Be7 {[%clk 0:02:32.7]}
10. Rd1 {[%clk 0:02:45.1]} 10... Bc6 {[%clk 0:02:31]} 11. Nc3 {[%clk 0:02:40.9]}
11... O-O {[%clk 0:02:30.3]} 12. Bf4 {[%clk 0:02:32.8]} 12... h6 {[%clk
0:02:26.8]} 13. h4 {[%clk 0:02:26.3]} 13... Re8 {[%clk 0:02:25.8]} 14. e4 {[%clk
0:02:18.5]} 14... Qc8 {[%clk 0:02:10.1]} 15. Ne5 {[%clk 0:02:13.4]} 15... Bb7
{[%clk 0:02:07.5]} 16. Qb3 {[%clk 0:02:12.7]} 16... Rf8 {[%clk 0:02:07.1]} 17.
Ng6 {[%clk 0:02:12.4]} 17... Re8 {[%clk 0:02:05.3]} 18. e5 {[%clk 0:02:09.2]}
18... Nh7 {[%clk 0:01:28.3]} 19. Nxe7+ {[%clk 0:01:36]} 19... Rxe7 {[%clk
0:01:28.1]} 20. Bxb7 {[%clk 0:01:36.8]} 20... Qxb7 {[%clk 0:01:27.9]} 21. Nb5
{[%clk 0:01:37.7]} 21... Nc6 {[%clk 0:01:24.6]} 22. Nd6 {[%clk 0:01:37.2]} 22...
Qa6 {[%clk 0:01:22.9]} 23. Nf5 {[%clk 0:01:36.1]} 23... Re6 {[%clk 0:01:08.1]}
24. Rxd7 {[%clk 0:01:35.2]} 24... c4 {[%clk 0:01:04.9]} 25. Qf3 {[%clk
0:01:32.5]} 25... Rf8 {[%clk 0:01:02.2]} 26. Qg4 {[%clk 0:00:59.7]} 26... Rg6
{[%clk 0:00:59]} 27. Qe2 {[%clk 0:01:00.1]} 27... Re8 {[%clk 0:00:37.6]} 28. h5
{[%clk 0:00:54.4]} 28... Rge6 {[%clk 0:00:27.3]} 29. Qg4 {[%clk 0:00:54.3]}
29... Ng5 {[%clk 0:00:26.2]} 30. Nxg7 {[%clk 0:00:37.1]} 30... Kxg7 {[%clk
0:00:23.4]} 31. Bxg5 {[%clk 0:00:37.2]} 31... Nxe5 {[%clk 0:00:23.3]} 32. Bxh6+
{[%clk 0:00:25.6]} 32... Kxh6 {[%clk 0:00:22.2]} 33. Qf4+ {[%clk 0:00:25.3]}
33... Kg7 {[%clk 0:00:22.2]} 34. Rd5 {[%clk 0:00:14.9]} 34... Qc8 {[%clk
0:00:17.1]} 35. Rad1 {[%clk 0:00:15.5]} 35... R6e7 {[%clk 0:00:11.9]} 36. Qg5+
{[%clk 0:00:07.2]} 36... Kh7 {[%clk 0:00:11.5]} 37. Kg2 {[%clk 0:00:07]} 37...
Qc6 {[%clk 0:00:08]} 38. Qf5+ {[%clk 0:00:05.7]} 38... Kg7 {[%clk 0:00:07.7]}
39. Rd4 {[%clk 0:00:06.2]} 39... Rd7 {[%clk 0:00:05.2]} 40. Qg5+ {[%clk
0:00:03.5]} 40... Kh7 {[%clk 0:00:05]} 41. h6 {[%clk 0:00:04.1]} 41... f6 {[%clk
0:00:03.8]} 42. Qf5+ {[%clk 0:00:04.3]} 42... Kxh6 {[%clk 0:00:04.2]} 43. Qf4+
{[%clk 0:00:03.9]} 43... Kg7 {[%clk 0:00:04]} 44. Qe4 {[%clk 0:00:04.2]} 44...
Rxd5 {[%clk 0:00:04.1]} 45. Rxd5 {[%clk 0:00:04.5]} 45... Rd8 {[%clk 0:00:04.5]}
46. Rxe5 {[%clk 0:00:04.6]} 46... Qxe4+ {[%clk 0:00:04.2]} 47. Rxe4 {[%clk
0:00:05.5]} 47... Rd2 {[%clk 0:00:04.4]} 48. Rxc4 {[%clk 0:00:06]} 48... Rxb2
{[%clk 0:00:04.8]} 49. Rc7+ {[%clk 0:00:06.6]} 49... Kg6 {[%clk 0:00:05.3]} 50.
Rxa7 {[%clk 0:00:07.5]} 50... b5 {[%clk 0:00:05.9]} 51. a3 {[%clk 0:00:07.7]}
51... b4 {[%clk 0:00:05.8]} 52. a4 {[%clk 0:00:07.7]} 52... Ra2 {[%clk
0:00:06.3]} 53. a5 {[%clk 0:00:08.3]} 53... b3 {[%clk 0:00:06.6]} 54. a6 {[%clk
0:00:08.9]} 54... b2 {[%clk 0:00:07.2]} 55. Rb7 {[%clk 0:00:09.6]} 55... Rxa6
{[%clk 0:00:07.7]} 56. Rxb2 {[%clk 0:00:10.2]} 56... Ra4 {[%clk 0:00:08.4]} 57.
Re2 {[%clk 0:00:10.7]} 57... Kg5 {[%clk 0:00:08]} 58. Rd2 {[%clk 0:00:11]} 58...
Kf5 {[%clk 0:00:08]} 59. Rd8 {[%clk 0:00:11.2]} 59... Kg5 {[%clk 0:00:08.1]} 60.
Re8 {[%clk 0:00:11.6]} 60... Kg6 {[%clk 0:00:08.2]} 61. Kf3 {[%clk 0:00:12.1]}
61... Rb4 {[%clk 0:00:08.7]} 62. Re4 {[%clk 0:00:12.6]} 62... Ra4 {[%clk
0:00:09.3]} 63. Rxa4 {[%clk 0:00:12.4]} 1-0

[Event "*** SCC Grand Prix: Titled Tuesday Blitz"]
[Site "Chess.com"]
[Date "2020.08.25"]
[Round "8"]
[White "Natalya_Buksa"]
[Black "Tooweak2slow03"]
[Result "1/2-1/2"]
[WhiteElo "2518"]
[BlackElo "2694"]
[TimeControl "180+1"]
[EndTime "11:37:36 PDT"]
[Termination "Game drawn - insufficient material"]

1. d4 {[%clk 0:03:00.9]} 1... e6 {[%clk 0:03:00.2]} 2. Nc3 {[%clk 0:03:01.3]}
2... Bb4 {[%clk 0:02:59.4]} 3. e4 {[%clk 0:03:00.4]} 3... d5 {[%clk 0:02:59.5]}
4. Ne2 {[%clk 0:03:00.8]} 4... dxe4 {[%clk 0:02:58.2]} 5. a3 {[%clk 0:03:00.6]}
5... Bxc3+ {[%clk 0:02:57.4]} 6. Nxc3 {[%clk 0:03:01.5]} 6... Nf6 {[%clk
0:02:56.7]} 7. Bg5 {[%clk 0:03:01.5]} 7... h6 {[%clk 0:02:42]} 8. Bxf6 {[%clk
0:03:01.2]} 8... Qxf6 {[%clk 0:02:42.9]} 9. Nxe4 {[%clk 0:03:01.6]} 9... Qe7
{[%clk 0:02:40.3]} 10. Bd3 {[%clk 0:03:00.7]} 10... b6 {[%clk 0:02:38.6]} 11.
Qg4 {[%clk 0:02:29.9]} 11... f5 {[%clk 0:02:27.3]} 12. Qg6+ {[%clk 0:02:30]}
12... Qf7 {[%clk 0:02:27]} 13. Qxf7+ {[%clk 0:02:29.9]} 13... Kxf7 {[%clk
0:02:27.9]} 14. Nd2 {[%clk 0:02:29.5]} 14... Bb7 {[%clk 0:02:23.4]} 15. Rg1
{[%clk 0:02:24.8]} 15... Rd8 {[%clk 0:02:20.8]} 16. Nb3 {[%clk 0:02:22]} 16...
a6 {[%clk 0:02:18.8]} 17. O-O-O {[%clk 0:02:22.1]} 17... Nc6 {[%clk 0:02:16]}
18. Bc4 {[%clk 0:02:21.6]} 18... Ne7 {[%clk 0:02:14.1]} 19. Rge1 {[%clk
0:02:16.5]} 19... Bd5 {[%clk 0:02:12.1]} 20. Bxd5 {[%clk 0:02:16.2]} 20... exd5
{[%clk 0:02:09.9]} 21. Nd2 {[%clk 0:02:15.1]} 21... Nc6 {[%clk 0:02:07.8]} 22.
Nf3 {[%clk 0:02:15.3]} 22... Re8 {[%clk 0:02:04.8]} 23. Ne5+ {[%clk 0:02:02.5]}
23... Nxe5 {[%clk 0:02:01.8]} 24. dxe5 {[%clk 0:02:03.4]} 24... Ke6 {[%clk
0:02:02]} 25. f4 {[%clk 0:02:02.1]} 25... g5 {[%clk 0:02:00]} 26. g3 {[%clk
0:02:02.3]} 26... c5 {[%clk 0:01:58.6]} 27. Kd2 {[%clk 0:02:01.1]} 27... Rad8
{[%clk 0:01:56.3]} 28. Ke3 {[%clk 0:02:01]} 28... d4+ {[%clk 0:01:54.9]} 29. Kf3
{[%clk 0:02:01.2]} 29... g4+ {[%clk 0:01:48.6]} 30. Ke2 {[%clk 0:01:58.4]} 30...
b5 {[%clk 0:01:49.1]} 31. Rd2 {[%clk 0:01:58.7]} 31... h5 {[%clk 0:01:47.1]} 32.
Red1 {[%clk 0:01:53.3]} 32... h4 {[%clk 0:01:44.7]} 33. c3 {[%clk 0:01:47.8]}
33... hxg3 {[%clk 0:01:41.8]} 34. hxg3 {[%clk 0:01:48.7]} 34... Rh8 {[%clk
0:01:42.5]} 35. cxd4 {[%clk 0:01:47.8]} 35... cxd4 {[%clk 0:01:41.8]} 36. Rxd4
{[%clk 0:01:47.5]} 36... Rh2+ {[%clk 0:01:39.7]} 37. Ke3 {[%clk 0:01:45.6]}
37... Rxd4 {[%clk 0:01:39.4]} 38. Rxd4 {[%clk 0:01:45.4]} 38... Rxb2 {[%clk
0:01:38.1]} 39. Rd6+ {[%clk 0:01:45.6]} 39... Ke7 {[%clk 0:01:37.2]} 40. Rxa6
{[%clk 0:01:45.7]} 40... Rb3+ {[%clk 0:01:37.7]} 41. Kd4 {[%clk 0:01:46.2]}
41... Rxg3 {[%clk 0:01:35.2]} 42. Rf6 {[%clk 0:01:43.4]} 42... Rxa3 {[%clk
0:01:32.9]} 43. Rxf5 {[%clk 0:01:43.7]} 43... Ra4+ {[%clk 0:01:32.8]} 44. Kd5
{[%clk 0:01:26.3]} 44... b4 {[%clk 0:01:31.8]} 45. Rg5 {[%clk 0:01:07.2]} 45...
b3 {[%clk 0:01:31.1]} 46. Rxg4 {[%clk 0:01:07.5]} 46... Rb4 {[%clk 0:01:18.3]}
47. Rg1 {[%clk 0:01:01.8]} 47... Rxf4 {[%clk 0:01:17.7]} 48. Rg7+ {[%clk
0:01:01.1]} 48... Rf7 {[%clk 0:01:16.7]} 49. Rg3 {[%clk 0:01:00.2]} 49... b2
{[%clk 0:01:14.7]} 50. Rb3 {[%clk 0:01:00.7]} 50... Rf2 {[%clk 0:01:13]} 51.
Rb7+ {[%clk 0:01:01.1]} 51... Kd8 {[%clk 0:01:10.3]} 52. Ke6 {[%clk 0:01:00.2]}
52... Kc8 {[%clk 0:01:08.9]} 53. Rb3 {[%clk 0:00:59.8]} 53... Kd8 {[%clk
0:01:03.6]} 54. Rb4 {[%clk 0:00:49.4]} 54... Re2 {[%clk 0:00:55.5]} 55. Kd6
{[%clk 0:00:23.9]} 55... Kc8 {[%clk 0:00:50.4]} 56. e6 {[%clk 0:00:23.5]} 56...
Rd2+ {[%clk 0:00:49]} 57. Ke7 {[%clk 0:00:24]} 57... Re2 {[%clk 0:00:48]} 58.
Rb3 {[%clk 0:00:20.1]} 58... Kc7 {[%clk 0:00:44.4]} 59. Rb4 {[%clk 0:00:20]}
59... Kc8 {[%clk 0:00:42.7]} 60. Kf7 {[%clk 0:00:18.4]} 60... Kc7 {[%clk
0:00:40.3]} 61. e7 {[%clk 0:00:15.8]} 61... Rf2+ {[%clk 0:00:40.6]} 62. Ke8
{[%clk 0:00:15.6]} 62... Kd6 {[%clk 0:00:29.2]} 63. Rd4+ {[%clk 0:00:15.4]}
63... Kc5 {[%clk 0:00:26.7]} 64. Rd1 {[%clk 0:00:15.2]} 64... Kc4 {[%clk
0:00:25.3]} 65. Kd8 {[%clk 0:00:14.1]} 65... Re2 {[%clk 0:00:23.2]} 66. e8=Q
{[%clk 0:00:10.2]} 66... Rxe8+ {[%clk 0:00:23.1]} 67. Kxe8 {[%clk 0:00:11.1]}
67... Kc3 {[%clk 0:00:23.9]} 68. Rg1 {[%clk 0:00:11]} 68... Kc2 {[%clk
0:00:24.8]} 69. Rh1 {[%clk 0:00:08.3]} 69... b1=Q {[%clk 0:00:23.4]} 70. Rxb1
{[%clk 0:00:08.5]} 70... Kxb1 {[%clk 0:00:24.1]} 1/2-1/2

[Event "*** SCC Grand Prix: Titled Tuesday Blitz"]
[Site "Chess.com"]
[Date "2020.08.25"]
[Round "8"]
[White "AttackSparrow"]
[Black "Ermito2020"]
[Result "1-0"]
[WhiteElo "2419"]
[BlackElo "2621"]
[TimeControl "180+1"]
[EndTime "11:37:37 PDT"]
[Termination "AttackSparrow won by resignation"]

1. e4 {[%clk 0:03:00.9]} 1... c6 {[%clk 0:02:59.6]} 2. d4 {[%clk 0:02:59.5]}
2... d5 {[%clk 0:03:00.5]} 3. exd5 {[%clk 0:03:00.4]} 3... cxd5 {[%clk
0:03:00.5]} 4. c4 {[%clk 0:03:01.1]} 4... Nf6 {[%clk 0:03:00.6]} 5. Nc3 {[%clk
0:03:01.4]} 5... g6 {[%clk 0:03:01]} 6. cxd5 {[%clk 0:03:01.1]} 6... Bg7 {[%clk
0:02:58]} 7. Bb5+ {[%clk 0:03:00.4]} 7... Nbd7 {[%clk 0:02:55.3]} 8. d6 {[%clk
0:03:00.7]} 8... exd6 {[%clk 0:02:35.9]} 9. Qe2+ {[%clk 0:02:59.7]} 9... Qe7
{[%clk 0:02:33]} 10. Bf4 {[%clk 0:02:59.8]} 10... Qxe2+ {[%clk 0:02:10.9]} 11.
Bxe2 {[%clk 0:03:00.7]} 11... Nb6 {[%clk 0:01:53.9]} 12. Bxd6 {[%clk 0:02:48]}
12... Nfd5 {[%clk 0:01:48.1]} 13. Nf3 {[%clk 0:02:43]} 13... Be6 {[%clk
0:01:39.4]} 14. Bb5+ {[%clk 0:02:37.3]} 14... Bd7 {[%clk 0:01:38]} 15. Nxd5
{[%clk 0:02:30.2]} 15... Nxd5 {[%clk 0:01:34.9]} 16. Bxd7+ {[%clk 0:02:30.1]}
16... Kxd7 {[%clk 0:01:34.7]} 17. Be5 {[%clk 0:02:22.3]} 17... f6 {[%clk
0:01:34]} 18. Bg3 {[%clk 0:02:21.7]} 18... Rhe8+ {[%clk 0:01:33.5]} 19. Kd1
{[%clk 0:02:20.8]} 19... Rac8 {[%clk 0:01:28.1]} 20. Rc1 {[%clk 0:02:15.8]}
20... Rxc1+ {[%clk 0:01:25.1]} 21. Kxc1 {[%clk 0:02:16.7]} 21... Nb4 {[%clk
0:01:16.8]} 22. a3 {[%clk 0:02:02.4]} 22... Rc8+ {[%clk 0:01:16.5]} 23. Kb1
{[%clk 0:02:00.9]} 23... Nd5 {[%clk 0:01:14.5]} 24. Rc1 {[%clk 0:01:58.9]} 24...
Re8 {[%clk 0:01:13.9]} 25. Re1 {[%clk 0:01:51.1]} 25... Rc8 {[%clk 0:01:09.8]}
26. Nd2 {[%clk 0:01:46.9]} 26... b6 {[%clk 0:01:06.9]} 27. Rc1 {[%clk
0:01:15.3]} 27... Re8 {[%clk 0:01:06.2]} 28. Nf3 {[%clk 0:01:15.3]} 28... Bh6
{[%clk 0:01:04]} 29. Re1 {[%clk 0:01:10.2]} 29... Rc8 {[%clk 0:01:04]} 30. Re2
{[%clk 0:00:48.3]} 30... Rc1+ {[%clk 0:01:00.9]} 31. Ka2 {[%clk 0:00:48.7]}
31... Rd1 {[%clk 0:00:44.9]} 32. Re1 {[%clk 0:00:44]} 32... Rd3 {[%clk
0:00:41.9]} 33. Kb1 {[%clk 0:00:39.1]} 33... Rb3 {[%clk 0:00:39.7]} 34. Kc2
{[%clk 0:00:38.1]} 34... Rb5 {[%clk 0:00:39.6]} 35. Re2 {[%clk 0:00:27.2]} 35...
a5 {[%clk 0:00:39.1]} 36. Kd3 {[%clk 0:00:20.7]} 36... a4 {[%clk 0:00:36.5]} 37.
Kc4 {[%clk 0:00:20.6]} 37... Ra5 {[%clk 0:00:36.7]} 38. Nd2 {[%clk 0:00:18.3]}
38... Bxd2 {[%clk 0:00:34.3]} 39. Rxd2 {[%clk 0:00:19.2]} 39... Kc6 {[%clk
0:00:34.3]} 40. Re2 {[%clk 0:00:18.9]} 40... b5+ {[%clk 0:00:34.5]} 41. Kd3
{[%clk 0:00:19.2]} 41... Kd7 {[%clk 0:00:34.9]} 42. Rc2 {[%clk 0:00:18.7]} 42...
Ra6 {[%clk 0:00:34.4]} 43. Rc5 {[%clk 0:00:18.8]} 43... Ke6 {[%clk 0:00:30.8]}
44. Rxb5 {[%clk 0:00:18.9]} 44... Rc6 {[%clk 0:00:30.1]} 45. Ke4 {[%clk
0:00:17.5]} 45... f5+ {[%clk 0:00:28.8]} 46. Kd3 {[%clk 0:00:17.8]} 46... f4
{[%clk 0:00:27.7]} 47. Bh4 {[%clk 0:00:17.7]} 47... Rc1 {[%clk 0:00:27.6]} 48.
Kd2 {[%clk 0:00:15.3]} 48... Rh1 {[%clk 0:00:26.4]} 49. h3 {[%clk 0:00:10.4]}
49... Rg1 {[%clk 0:00:26.6]} 50. g4 {[%clk 0:00:10]} 50... Rh1 {[%clk
0:00:24.9]} 51. Ra5 {[%clk 0:00:06.9]} 51... Rxh3 {[%clk 0:00:24.2]} 52. Bd8
{[%clk 0:00:07.5]} 52... Rb3 {[%clk 0:00:23.3]} 53. Kc2 {[%clk 0:00:07]} 53...
Rf3 {[%clk 0:00:23.3]} 54. Ra6+ {[%clk 0:00:06.9]} 54... Kd7 {[%clk 0:00:23.1]}
55. Bh4 {[%clk 0:00:07.3]} 55... Rh3 {[%clk 0:00:21.2]} 56. Bg5 {[%clk
0:00:06.5]} 56... Rh2 {[%clk 0:00:20.9]} 57. Rxa4 {[%clk 0:00:05.8]} 57... Rxf2+
{[%clk 0:00:20.8]} 58. Kd3 {[%clk 0:00:04.5]} 58... Rf3+ {[%clk 0:00:19.6]} 59.
Ke4 {[%clk 0:00:03.9]} 59... Nb6 {[%clk 0:00:16.5]} 60. Ra7+ {[%clk 0:00:03]}
60... Kc6 {[%clk 0:00:16.4]} 61. Kxf3 {[%clk 0:00:03.9]} 61... Nc4 {[%clk
0:00:16.7]} 62. Rxh7 {[%clk 0:00:04.4]} 62... Nd2+ {[%clk 0:00:16.7]} 63. Kxf4
{[%clk 0:00:04.9]} 63... Nc4 {[%clk 0:00:17.6]} 64. Rh6 {[%clk 0:00:05.3]} 64...
Kd5 {[%clk 0:00:18.4]} 65. Rxg6 {[%clk 0:00:05.6]} 65... Kxd4 {[%clk 0:00:19.3]}
66. Rf6 {[%clk 0:00:05.5]} 66... Kd5 {[%clk 0:00:19.6]} 67. Rf5+ {[%clk
0:00:06.3]} 67... Kd4 {[%clk 0:00:19.2]} 68. b4 {[%clk 0:00:06.5]} 68... Nb2
{[%clk 0:00:20.1]} 69. b5 {[%clk 0:00:06.9]} 69... Nd3+ {[%clk 0:00:20.9]} 70.
Kg3 {[%clk 0:00:06.5]} 70... Kc4 {[%clk 0:00:21.5]} 71. b6 {[%clk 0:00:06.9]}
71... Nc5 {[%clk 0:00:22.1]} 72. Rxc5+ {[%clk 0:00:06.6]} 72... Kxc5 {[%clk
0:00:22.2]} 73. b7 {[%clk 0:00:07.5]} 1-0